bitfinex/quotes_SOLUSD_20250624
["timestamp","ask_amount","ask_price","bid_price","bid_amount"]
[1750801415690,4.82001477,145.23,145.18,88.7]
[1750801415874,1.37703112,145.24,145.19,6.52250652]
[1750801416188,1.37703112,145.24,145.2,6.52250652]
[1750801417475,1.37703112,145.24,145.19,13.40999737]
[1750801418453,7.89953764,145.24,145.18,95.22250652]
[1750801419776,11.34211544,145.24,145.18,95.22250652]
[1750801422283,11.34211544,145.24,145.18,244.12250652]
[1750801425183,1.0406182,145.31,145.24,18.64964886]
[1750801425994,1.0406182,145.31,145.25,6.52250652]
[1750801426162,2.41700637,145.31,145.25,6.52250652]
[1750801426359,2.41700637,145.31,145.25,13.40672938]
[1750801427893,2.41700637,145.31,145.26,13.40645173]
[1750801428901,2.41700637,145.31,145.25,6.88468158]
[1750801429202,2.41700637,145.31,145.26,6.52250652]
[1750801430299,1.0406182,145.31,145.27,32.05588911]
[1750801430475,1.0406182,145.31,145.28,6.52250652]
[1750801430793,1.0406182,145.31,145.27,39.40624025]
[1750801432372,2.41704686,145.31,145.26,95.22250652]
[1750801433294,2.41704686,145.31,145.26,88.7]
[1750801433472,8.93955338,145.31,145.26,88.7]
[1750801433679,6.52250652,145.3,145.25,26.0]
[1750801434096,6.52250652,145.29,145.24,95.22250652]
[1750801434297,6.52250652,145.29,145.24,6.52250652]
[1750801434481,5.85796627,145.31,145.24,6.52250652]
[1750801434686,6.52250652,145.3,145.25,6.52250652]
[1750801434882,12.38047279,145.31,145.25,6.52250652]
[1750801435506,6.52250652,145.3,145.25,6.52250652]
[1750801435798,1.37655723,145.29,145.24,6.52250652]
[1750801436002,1.37655723,145.29,145.25,6.52250652]
[1750801436809,1.37655723,145.29,145.26,6.52250652]
[1750801437193,1.37646249,145.3,145.26,6.52250652]
[1750801438408,1.37646249,145.3,145.25,6.52250652]
[1750801439906,1.37646249,145.3,145.25,95.22250652]
[1750801440100,1.37646249,145.3,145.25,88.7]
[1750801440302,1.37646249,145.3,145.25,95.22250652]
[1750801441206,7.89896901,145.3,145.24,6.52250652]
[1750801441408,1.37646249,145.3,145.24,6.52250652]
[1750801441595,7.89896901,145.3,145.24,6.52250652]
[1750801442004,1.37646249,145.3,145.25,6.52250652]
[1750801442309,1.37646249,145.3,145.26,6.52250652]
[1750801443492,1.37646249,145.3,145.25,6.88464497]
[1750801443889,1.37646249,145.3,145.26,6.52250652]
[1750801446608,1.37646249,145.3,145.27,6.52250652]
[1750801446815,2.41701996,145.31,145.27,6.52250652]
[1750801447314,2.41701996,145.31,145.26,6.52250652]
[1750801447992,8.93952648,145.31,145.25,32.52250652]
[1750801448511,2.41701996,145.31,145.26,6.52250652]
[1750801449328,8.93952648,145.31,145.25,32.52250652]
[1750801450621,8.93952648,145.31,145.25,6.52250652]
[1750801450919,6.52250652,145.3,145.24,6.52250652]
[1750801451093,6.52250652,145.3,145.24,244.12250652]
[1750801451614,1.37655723,145.29,145.24,244.12250652]
[1750801454822,6.52250652,145.28,145.24,237.6]
[1750801455116,9.43676375,145.29,145.24,237.6]
[1750801456607,9.43676375,145.29,145.24,244.12250652]
[1750801456608,2.91425723,145.29,145.24,244.12250652]
[1750801456993,9.43676375,145.29,145.24,244.12250652]
[1750801457196,2.91425723,145.29,145.24,244.12250652]
[1750801457397,2.91425723,145.29,145.25,6.52250652]
[1750801462522,2.91425723,145.29,145.23,33.573737]
[1750801462733,9.43676375,145.29,145.23,95.22250652]
[1750801464522,2.91425723,145.29,145.23,95.22250652]
[1750801465526,2.91425723,145.29,145.23,88.7]
[1750801465708,2.91425723,145.29,145.23,95.22250652]
[1750801466309,6.52250652,145.28,145.23,88.7]
[1750801466517,6.52250652,145.27,145.21,95.22250652]
[1750801466835,6.52250652,145.27,145.2,102.109438]
[1750801467202,6.52250652,145.27,145.2,95.58693148]
[1750801467412,6.52250652,145.27,145.21,6.52250652]
[1750801468238,6.52250652,145.26,145.21,6.52250652]
[1750801468423,1.37693631,145.25,145.21,6.52250652]
[1750801469726,1.37693631,145.25,145.2,88.7]
[1750801469933,1.37693631,145.25,145.19,10.01680235]
[1750801469934,6.52250652,145.24,145.19,10.01680235]
[1750801470525,1.37712593,145.23,145.19,6.52250652]
[1750801472344,2.88002593,145.23,145.17,95.5883654]
[1750801472547,2.88002593,145.23,145.19,6.52250652]
[1750801474046,2.88002593,145.23,145.18,6.52250652]
[1750801475528,2.88002593,145.23,145.18,244.12250652]
[1750801476237,2.88002593,145.23,145.18,237.6]
[1750801476433,2.88002593,145.23,145.18,244.12250652]
[1750801479442,2.88002593,145.23,145.19,6.52250652]
[1750801479650,2.88002593,145.23,145.2,6.52250652]
[1750801480656,2.88002593,145.23,145.18,244.48789335]
[1750801480856,2.88002593,145.23,145.19,6.52250652]
[1750801482349,2.88002593,145.23,145.18,244.12250652]
[1750801483358,2.88002593,145.23,145.18,237.6]
[1750801483752,2.88002593,145.23,145.18,244.12250652]
[1750801484359,2.88002593,145.23,145.18,95.22250652]
[1750801487471,6.52250652,145.22,145.18,88.7]
[1750801487650,1.37731561,145.21,145.18,88.7]
[1750801488571,1.37731561,145.21,145.17,88.7]
[1750801489168,4.82027268,145.22,145.17,88.7]
[1750801489345,6.52250652,145.2,145.17,88.7]
[1750801489853,6.52250652,145.2,145.15,95.22250652]
[1750801490462,6.52250652,145.2,145.15,6.52250652]
[1750801491467,1.37750533,145.19,145.15,6.52250652]
[1750801492158,1.37750533,145.19,145.13,114.7]
[1750801492159,1.37750533,145.19,145.14,6.52250652]
[1750801495680,11.34377519,145.19,145.13,121.22250652]
[1750801496073,11.34377519,145.19,145.13,270.12250652]
[1750801497262,11.34377519,145.19,145.13,244.12250652]
[1750801498061,11.34377519,145.19,145.14,6.52250652]
[1750801498062,4.82126867,145.19,145.14,6.52250652]
[1750801498275,11.34377519,145.19,145.14,6.52250652]
[1750801500290,11.34377519,145.19,145.13,244.12250652]
[1750801500799,11.34377519,145.19,145.14,6.52250652]
[1750801501003,4.82126867,145.19,145.15,6.52250652]
[1750801501298,4.82126867,145.19,145.14,6.52250652]
[1750801501594,4.82126867,145.19,145.15,6.52250652]
[1750801501986,4.82126867,145.19,145.15,95.22250652]
[1750801502193,4.82126867,145.19,145.15,88.7]
[1750801502392,1.37750533,145.19,145.15,95.22250652]
[1750801502896,1.37750533,145.19,145.15,88.7]
[1750801503196,1.37750533,145.19,145.15,95.22250652]
[1750801504399,1.37750533,145.19,145.16,6.52250652]
[1750801505621,4.82064152,145.21,145.15,88.7]
[1750801505906,11.34314804,145.21,145.15,95.22250652]
[1750801506288,8.99513401,145.21,145.15,92.87449249]
[1750801506599,4.82064152,145.21,145.15,92.87449249]
[1750801506793,1.37731561,145.21,145.16,4.17449249]
[1750801507486,1.37731561,145.21,145.15,95.5894094]
[1750801507487,5.5518081,145.21,145.15,99.76390189]
[1750801507902,5.5518081,145.21,145.15,248.66390189]
[1750801508701,1.37731561,145.21,145.14,6.88969515]
[1750801508906,5.5518081,145.21,145.15,4.17449249]
[1750801509103,5.5518081,145.21,145.14,6.88969515]
[1750801509312,5.5518081,145.21,145.15,4.17449249]
[1750801510804,4.17449249,145.2,145.14,11.06418764]
[1750801510988,1.37731561,145.21,145.14,11.06418764]
[1750801511190,5.5518081,145.21,145.15,4.17449249]
[1750801511816,1.37731561,145.21,145.15,11.06366807]
[1750801512021,5.5518081,145.21,145.15,11.06366807]
[1750801512192,1.37731561,145.21,145.16,4.17449249]
[1750801514295,1.37731561,145.21,145.16,6.52218819]
[1750801516022,1.37731561,145.21,145.16,13.41110496]
[1750801516820,1.37731561,145.21,145.17,6.52218819]
[1750801517899,1.37722076,145.22,145.17,6.52218819]
[1750801520215,1.37722076,145.22,145.17,95.22218819]
[1750801520724,1.37722076,145.22,145.17,88.7]
[1750801521022,1.37722076,145.22,145.17,95.22218819]
[1750801522217,7.89940895,145.22,145.17,95.22218819]
[1750801522518,7.89940895,145.22,145.17,88.7]
[1750801523702,1.37722076,145.22,145.17,95.22218819]
[1750801524017,1.37722076,145.22,145.17,102.11060236]
[1750801525207,1.37722076,145.22,145.18,6.52218819]
[1750801525409,1.37722076,145.22,145.18,244.12218819]
[1750801529935,1.5029,145.23,145.19,6.52218819]
[1750801530124,7.53708266,145.24,145.2,6.52218819]
[1750801530802,6.16,145.24,145.2,6.52218819]
[1750801531032,6.16,145.24,145.21,6.52218819]
[1750801531329,6.16,145.24,145.21,244.12218819]
[1750801532432,6.16,145.24,145.21,251.00872389]
[1750801534636,6.16,145.24,145.21,244.12218819]
[1750801535509,6.16,145.24,145.21,251.00871884]
[1750801536335,6.16,145.24,145.21,248.65773111]
[1750801539937,6.16,145.24,145.21,11.05773111]
[1750801540643,6.16,145.24,145.21,6.88653065]
[1750801540821,6.16,145.24,145.21,11.05773111]
[1750801549347,6.16,145.24,145.21,248.65773111]
[1750801553359,6.16,145.24,145.21,244.48653065]
[1750801554773,6.16,145.24,145.21,237.6]
[1750801555568,6.16,145.24,145.21,244.48646771]
[1750801558360,1.3769431,145.25,145.21,244.48646771]
[1750801558567,5.54804198,145.26,145.21,244.48646771]
[1750801559165,1.37684152,145.26,145.21,248.65766817]
[1750801559467,15.45798809,145.27,145.21,248.65766817]
[1750801560569,19.62918855,145.27,145.21,248.65766817]
[1750801561274,15.45798809,145.27,145.22,11.0570421]
[1750801563159,4.17120046,145.26,145.21,244.48640819]
[1750801563360,19.62918855,145.27,145.21,248.65760865]
[1750801564448,15.45798809,145.27,145.21,248.65760865]
[1750801564644,19.62918855,145.27,145.21,248.65760865]
[1750801565676,15.45798809,145.27,145.21,248.65760865]
[1750801565889,19.62918855,145.27,145.21,248.65760865]
[1750801566569,19.62918855,145.27,145.22,11.05727976]
[1750801566570,15.45798809,145.27,145.22,11.05727976]
[1750801570077,15.45798809,145.27,145.22,248.65727976]
[1750801570961,9.02078809,145.27,145.22,248.65727976]
[1750801571175,9.02078809,145.27,145.23,4.17120046]
[1750801572067,9.02078809,145.27,145.23,11.05680111]
[1750801572385,9.02078809,145.27,145.23,4.17120046]
[1750801573466,7.47678809,145.27,145.23,4.17120046]
[1750801573782,7.47678809,145.27,145.23,11.05678351]
[1750801576082,7.47678809,145.27,145.23,248.65678351]
[1750801578481,7.47678809,145.27,145.23,244.48558305]
[1750801578792,7.47678809,145.27,145.23,248.65678351]
[1750801580991,6.1,145.27,145.24,4.17120046]
[1750801581172,6.1,145.27,145.24,241.77120046]
[1750801582088,6.1,145.27,145.24,92.87120046]
[1750801585596,6.1,145.27,145.24,88.7]
[1750801585799,6.1,145.27,145.24,92.87120046]
[1750801586170,9.32406323,145.29,145.24,99.75608556]
[1750801586171,5.15286277,145.29,145.24,99.75608556]
[1750801586371,9.32406323,145.3,145.25,4.17120046]
[1750801586679,5.15286277,145.29,145.25,241.77120046]
[1750801587394,5.15286277,145.29,145.25,248.65566107]
[1750801588504,6.52938306,145.3,145.25,248.65566107]
[1750801588702,19.9123832,145.31,145.26,4.17120046]
[1750801589006,14.75952043,145.31,145.26,4.17120046]
[1750801589208,19.9123832,145.31,145.26,4.17120046]
[1750801589409,14.75952043,145.31,145.26,4.17120046]
[1750801589578,19.9123832,145.31,145.26,4.17120046]
[1750801589778,14.75952043,145.31,145.26,4.17120046]
[1750801589998,19.9123832,145.31,145.26,92.87120046]
[1750801590196,14.75952043,145.31,145.26,92.87120046]
[1750801590396,19.9123832,145.31,145.26,92.87120046]
[1750801590695,14.75952043,145.31,145.26,88.7]
[1750801590897,15.74118274,145.31,145.26,92.87120046]
[1750801591078,10.58831997,145.31,145.26,92.87120046]
[1750801591278,15.74118274,145.31,145.26,92.87120046]
[1750801591484,10.58831997,145.31,145.26,92.87120046]
[1750801592180,10.58831997,145.31,145.26,99.75535817]
[1750801592399,3.93371997,145.31,145.27,4.17120046]
[1750801593705,8.10492043,145.31,145.27,237.6]
[1750801594004,3.93371997,145.31,145.27,237.6]
[1750801594302,3.93371997,145.31,145.27,241.77120046]
[1750801594489,3.93371997,145.31,145.27,237.6]
[1750801594896,3.93371997,145.31,145.26,11.05509019]
[1750801597514,2.5573182,145.31,145.27,29.7045564]
[1750801597695,2.5573182,145.31,145.27,25.53335594]
[1750801597898,2.5573182,145.31,145.27,29.7045564]
[1750801599797,3.93369283,145.31,145.27,29.7045564]
[1750801600616,3.93369283,145.31,145.27,25.53323119]
[1750801600792,3.93369283,145.31,145.27,29.70443165]
[1750801601912,2.5573182,145.31,145.28,4.17120046]
[1750801602295,3.93372948,145.31,145.28,4.17120046]
[1750801602593,3.93372948,145.31,145.27,29.70453971]
[1750801603093,1.0406182,145.31,145.29,4.17120046]
[1750801603510,1.0406182,145.31,145.29,241.77120046]
[1750801604222,1.0406182,145.31,145.29,248.65381751]
[1750801605221,1.0406182,145.31,145.29,241.77120046]
[1750801606819,1.0406182,145.31,145.29,248.65390077]
[1750801607025,1.0406182,145.31,145.29,252.10680027]
[1750801607325,1.0406182,145.31,145.3,4.17120046]
[1750801607829,1.0406182,145.31,145.3,112.20886865]
[1750801608209,16.66666667,145.35,145.32,44.64964886]
[1750801608525,8.33333333,145.36,145.34,29.70126764]
[1750801608725,8.33333333,145.36,145.35,4.17120046]
[1750801612210,8.33333333,145.36,145.35,37.05114542]
[1750801613324,8.33333333,145.36,145.35,55.70079428]
[1750801614427,2.96905104,145.41,145.39,63.7]
[1750801614655,2.96905104,145.41,145.39,237.6]
[1750801624621,2.96905104,145.41,145.39,88.7]
[1750801624820,7.1402515,145.41,145.39,88.7]
[1750801625832,4.17120046,145.4,145.39,88.7]
[1750801626748,5.54671627,145.4,145.39,88.7]
[1750801629234,8.98550581,145.4,145.35,88.7]
[1750801629435,4.17120046,145.38,145.35,88.7]
[1750801630438,1.37579968,145.37,145.35,88.7]
[1750801630840,5.54700014,145.37,145.35,88.7]
[1750801634056,4.17120046,145.36,145.35,88.7]
[1750801635357,4.17120046,145.36,145.3,4.17120046]
[1750801635555,4.17120046,145.35,145.3,4.17120046]
[1750801636232,1.37608366,145.34,145.3,4.17120046]
[1750801636435,1.37608366,145.34,145.31,4.17120046]
[1750801637179,1.37579968,145.37,145.33,4.17120046]
[1750801639257,1.37579968,145.37,145.32,4.17120046]
[1750801640977,1.37579968,145.37,145.32,241.77120046]
[1750801642566,1.37579968,145.37,145.32,237.6]
[1750801642743,1.37579968,145.37,145.32,241.77120046]
[1750801648161,1.37579968,145.37,145.32,237.6]
[1750801649966,5.54700014,145.37,145.32,237.6]
[1750801655861,1.37579968,145.37,145.32,237.6]
[1750801656569,5.54700014,145.37,145.32,237.6]
[1750801660873,1.37579968,145.37,145.32,237.6]
[1750801661050,1.37579968,145.37,145.32,244.48120588]
[1750801665875,5.1281173,145.39,145.33,4.17120046]
[1750801666077,5.1281173,145.4,145.34,4.17120046]
[1750801666276,5.76010046,145.41,145.35,4.17120046]
[1750801666481,10.88821776,145.41,145.35,4.17120046]
[1750801666978,5.76010046,145.41,145.35,4.17120046]
[1750801667200,7.13555117,145.41,145.36,6.87947165]
[1750801668478,12.26366847,145.41,145.36,6.87947165]
[1750801669083,7.13555117,145.41,145.36,6.87947165]
[1750801669281,12.26366847,145.41,145.36,6.87947165]
[1750801670591,12.26366847,145.41,145.36,95.57947165]
[1750801670766,12.26366847,145.41,145.36,99.75067211]
[1750801671476,12.26366847,145.41,145.36,248.65067211]
[1750801674784,8.09246801,145.41,145.36,248.65067211]
[1750801675479,2.96435071,145.41,145.36,248.65067211]
[1750801675682,12.54348191,145.42,145.37,4.17120046]
[1750801675882,7.41536461,145.42,145.37,92.87120046]
[1750801676182,12.54348191,145.42,145.37,92.87120046]
[1750801676490,7.41536461,145.42,145.37,92.87120046]
[1750801676882,7.41536461,145.42,145.37,99.74980256]
[1750801681491,6.04,145.42,145.37,99.74980256]
[1750801681689,6.04,145.42,145.38,4.17120046]
[1750801684296,6.04,145.42,145.38,11.0496252]
[1750801685479,6.04,145.42,145.38,248.6496252]
[1750801687089,6.04,145.42,145.38,244.47842474]
[1750801687291,6.04,145.42,145.38,248.6496252]
[1750801687482,1.37515531,145.44,145.38,254.8119252]
[1750801687682,5.54635577,145.44,145.39,4.17120046]
[1750801688920,7.10235577,145.44,145.39,6.87779159]
[1750801690209,5.54635577,145.44,145.39,6.87779159]
[1750801691408,1.37515531,145.44,145.39,248.64899205]
[1750801692800,5.54628508,145.45,145.39,248.64899205]
[1750801694094,5.54628508,145.45,145.4,4.17120046]
[1750801694095,1.37508462,145.45,145.4,4.17120046]
[1750801694992,1.37497687,145.46,145.41,4.17120046]
[1750801695297,10.19120046,145.47,145.43,4.17120046]
[1750801695298,6.02,145.47,145.43,4.17120046]
[1750801695610,6.02,145.47,145.43,92.87120046]
[1750801696308,4.17120046,145.51,145.46,4.17120046]
[1750801696494,17.11574435,145.52,145.46,92.87120046]
[1750801696905,4.17120046,145.51,145.46,88.7]
[1750801697103,5.54572795,145.51,145.46,88.7]
[1750801697704,4.17120046,145.5,145.46,88.7]
[1750801698408,4.17120046,145.49,145.46,88.7]
[1750801699316,1.37475941,145.48,145.46,88.7]
[1750801699523,1.37475941,145.48,145.44,1.5978]
[1750801700311,6.4973455,145.49,145.44,1.5978]
[1750801700991,6.39675693,145.6,145.53,10.0]
[1750801701296,6.4973455,145.66,145.59,6.4973455]
[1750801701606,6.4973455,145.65,145.57,6.4973455]
[1750801701810,6.4973455,145.64,145.57,6.4973455]
[1750801702111,12.8573455,145.68,145.57,6.4973455]
[1750801702305,6.4973455,145.65,145.57,6.4973455]
[1750801702503,6.4973455,145.65,145.58,6.4973455]
[1750801705117,6.4973455,145.65,145.59,6.4973455]
[1750801706006,6.4973455,145.65,145.59,13.36550386]
[1750801707420,7.87051775,145.65,145.59,10.23244118]
[1750801708109,12.8573455,145.66,145.6,6.4973455]
[1750801708539,6.36,145.66,145.6,6.4973455]
[1750801708820,12.8573455,145.66,145.6,6.4973455]
[1750801709119,14.23044462,145.66,145.6,13.36505356]
[1750801709422,6.4973455,145.65,145.59,16.73007089]
[1750801709721,6.4973455,145.65,145.59,13.36578807]
[1750801709924,6.4973455,145.65,145.59,6.86844257]
[1750801710222,6.4973455,145.65,145.59,13.36578807]
[1750801710420,7.73309912,145.66,145.59,13.36578807]
[1750801710723,6.4973455,145.65,145.59,6.86844257]
[1750801711031,6.4973455,145.65,145.59,13.36578807]
[1750801711316,6.4973455,145.65,145.59,16.82187144]
[1750801711515,6.4973455,145.64,145.59,10.32452594]
[1750801711894,6.4973455,145.65,145.59,16.82187144]
[1750801712501,7.73309912,145.66,145.59,16.82187144]
[1750801712698,6.4973455,145.65,145.59,16.82187144]
[1750801712910,14.23044462,145.66,145.6,6.4973455]
[1750801714221,14.23044462,145.66,145.6,13.36538396]
[1750801714724,6.4973455,145.65,145.6,13.36538396]
[1750801715999,7.87050155,145.65,145.6,13.36538396]
[1750801716619,1.37315605,145.65,145.6,13.36538396]
[1750801717133,12.8573455,145.66,145.61,6.4973455]
[1750801717134,7.7330868,145.66,145.61,6.4973455]
[1750801717631,14.2304323,145.66,145.61,6.4973455]
[1750801718207,14.2304323,145.66,145.61,13.36497201]
[1750801718427,7.7330868,145.66,145.61,13.36497201]
[1750801718926,14.2304323,145.66,145.61,13.36497201]
[1750801719800,14.2304323,145.66,145.61,6.4973455]
[1750801720506,6.4973455,145.65,145.6,13.36547736]
[1750801728830,7.7330868,145.66,145.6,13.36547736]
[1750801729039,6.4973455,145.65,145.6,13.36547736]
[1750801729334,12.8573455,145.66,145.61,6.4973455]
[1750801729729,12.8573455,145.66,145.6,6.86813186]
[1750801729730,6.4973455,145.65,145.6,13.36547736]
[1750801732040,6.4973455,145.65,145.61,13.36153032]
[1750801735427,6.4973455,145.63,145.61,6.4941]
[1750801735828,6.4973455,145.63,145.6,6.867833]
[1750801736043,6.4973455,145.63,145.59,10.32453755]
[1750801736242,6.4973455,145.63,145.59,6.86845418]
[1750801737525,6.4973455,145.62,145.58,97.19091022]
[1750801737739,6.4973455,145.61,145.57,6.0227]
[1750801737938,6.4973455,145.61,145.56,6.4973455]
[1750801738646,6.4973455,145.61,145.57,6.86944606]
[1750801740941,6.4973455,145.6,145.54,14.5107455]
[1750801741142,1.37353785,145.61,145.54,14.5107455]
[1750801741344,6.4973455,145.59,145.54,5.04303206]
[1750801741518,6.4973455,145.59,145.54,9.95527756]
[1750801741717,6.4973455,145.59,145.54,16.82605346]
[1750801742443,6.4973455,145.6,145.55,6.4973455]
[1750801742750,7.87088335,145.61,145.55,6.4973455]
[1750801742954,7.87088335,145.61,145.55,13.36775935]
[1750801743524,7.87088335,145.61,145.55,102.06775935]
[1750801744130,7.87088335,145.61,145.56,6.4973455]
[1750801745137,1.37353785,145.61,145.56,6.4973455]
[1750801745326,7.87088335,145.61,145.56,6.4973455]
[1750801745847,7.87088335,145.61,145.55,95.57041385]
[1750801746024,7.87088335,145.61,145.55,102.06775935]
[1750801747639,1.37353785,145.61,145.57,6.4973455]
[1750801747845,1.37353785,145.61,145.57,95.1973455]
[1750801748457,1.37353785,145.61,145.57,88.7]
[1750801748857,1.37346328,145.62,145.57,102.06682761]
[1750801750136,55.99335731,145.63,145.57,102.06682761]
[1750801750451,1.6613,145.65,145.6,6.4973455]
[1750801750630,8.1586455,145.65,145.6,88.7]
[1750801751151,1.6613,145.65,145.6,88.7]
[1750801751351,8.1586455,145.65,145.6,88.7]
[1750801752066,9.53183623,145.65,145.6,95.1973455]
[1750801752557,9.53183623,145.65,145.6,88.7]
[1750801752757,3.03449073,145.65,145.6,88.7]
[1750801752954,9.53183623,145.65,145.6,88.7]
[1750801753353,6.4973455,145.64,145.6,88.7]
[1750801754059,7.87063198,145.64,145.6,88.7]
[1750801761850,6.36,145.66,145.62,6.4973455]
[1750801762161,6.36,145.66,145.63,6.4973455]
[1750801762359,6.36,145.66,145.63,95.1973455]
[1750801763180,1.37221269,145.75,145.64,1.6157]
[1750801763360,6.4973455,145.74,145.68,6.4973455]
[1750801763744,6.4973455,145.73,145.64,2.30217656]
[1750801763949,7.869754,145.73,145.65,6.86577411]
[1750801764152,9.69051918,145.76,145.68,6.4973455]
[1750801764371,1.37221269,145.75,145.68,6.4973455]
[1750801764582,6.4973455,145.74,145.68,6.4973455]
[1750801765255,6.4973455,145.74,145.69,6.86388907]
[1750801765256,7.86967014,145.74,145.69,6.86388907]
[1750801765560,1.37232464,145.74,145.69,13.36123457]
[1750801766275,7.86967014,145.74,145.69,6.86388907]
[1750801766470,7.86967014,145.74,145.67,32.86483146]
[1750801766680,6.4973455,145.73,145.67,39.36217696]
[1750801766870,7.86967014,145.74,145.68,7.18355588]
[1750801767673,7.86967014,145.74,145.68,14.04776438]
[1750801768167,7.86967014,145.74,145.68,102.74776438]
[1750801769486,1.37249519,145.72,145.68,95.5642085]
[1750801769785,1.37249519,145.72,145.68,88.7]
[1750801771483,1.37249519,145.72,145.68,95.1973455]
[1750801771688,1.37240101,145.73,145.68,95.1973455]
[1750801773788,1.37240101,145.73,145.68,6.4973455]
[1750801777469,1.37240101,145.73,145.68,13.36156023]
[1750801782799,1.37240101,145.73,145.68,6.86421473]
[1750801782992,1.37240101,145.73,145.68,13.36156023]
[1750801787406,1.37240101,145.73,145.69,6.4973455]
[1750801787800,1.37240101,145.73,145.68,6.86421473]
[1750801787993,1.37240101,145.73,145.68,13.36156023]
[1750801793222,6.4973455,145.74,145.68,13.36156023]
[1750801794194,4.14448198,145.73,145.68,11.00869671]
[1750801797112,4.14448198,145.73,145.68,99.70869671]
[1750801798716,4.14448198,145.74,145.68,99.70869671]
[1750801799718,4.14448198,145.74,145.69,4.14448198]
[1750801800294,4.14448198,145.74,145.68,11.00869671]
[1750801800516,5.51680354,145.74,145.68,11.00869671]
[1750801802624,1.37221269,145.75,145.68,11.00869671]
[1750801802796,4.14448198,145.74,145.68,11.00869671]
[1750801803707,5.51680817,145.74,145.68,11.00869671]
[1750801803906,1.37232619,145.74,145.68,11.00869671]
[1750801804104,4.14448198,145.74,145.68,11.00869671]
[1750801804306,6.26,145.76,145.72,4.14448198]
[1750801805424,6.26,145.76,145.73,6.86200507]
[1750801806410,1.37196826,145.78,145.73,95.56200507]
[1750801806615,7.57159186,145.82,145.76,4.14448198]
[1750801806807,13.36627384,145.82,145.76,4.14448198]
[1750801807001,13.36627384,145.82,145.73,261.61701776]
[1750801807202,4.14448198,145.81,145.76,4.14448198]
[1750801807803,5.51615552,145.81,145.75,4.14448198]
[1750801808219,7.57167354,145.81,145.74,6.86153423]
[1750801808422,4.14448198,145.8,145.75,4.14448198]
[1750801808606,7.57167354,145.81,145.74,4.14448198]
[1750801808607,4.14448198,145.79,145.74,4.14448198]
[1750801808806,4.14448198,145.78,145.73,241.74448198]
[1750801809005,4.14448198,145.78,145.73,4.14448198]
[1750801809620,4.14448198,145.78,145.72,11.00666457]
[1750801810304,6.47184941,145.78,145.72,13.334032]
[1750801810503,6.47184941,145.78,145.72,6.47184941]
[1750801810730,4.80109739,145.8,145.72,6.47184941]
[1750801810731,6.47184941,145.77,145.72,6.47184941]
[1750801810906,6.47184941,145.77,145.71,13.33466415]
[1750801811815,1.37211855,145.76,145.71,13.33466415]
[1750801812714,1.37211855,145.76,145.72,1.6]
[1750801814926,6.47184941,145.77,145.72,1.6]
[1750801815506,6.47184941,145.77,145.72,239.2]
[1750801816424,1.37211855,145.76,145.72,239.2]
[1750801821330,1.37211855,145.76,145.72,245.67184941]
[1750801823029,1.37211855,145.76,145.72,239.2]
[1750801826534,7.84396796,145.76,145.72,239.2]
[1750801826738,6.47184941,145.74,145.72,239.2]
[1750801827039,6.47184941,145.74,145.72,88.7]
[1750801827840,6.14,145.73,145.72,88.7]
[1750801828022,12.61184941,145.73,145.69,88.7]
[1750801828739,7.8443446,145.72,145.69,88.7]
[1750801829122,7.8443446,145.72,145.66,102.03692403]
[1750801829323,6.47184941,145.71,145.66,102.03692403]
[1750801829717,6.47184941,145.71,145.66,13.33692403]
[1750801830515,7.84447056,145.71,145.66,13.33692403]
[1750801832253,5.51823226,145.71,145.66,4.14561111]
[1750801836537,1.37262115,145.71,145.66,4.14561111]
[1750801837854,5.51823226,145.71,145.66,4.14561111]
[1750801839050,5.51823226,145.71,145.65,95.56557874]
[1750801839239,5.51823226,145.71,145.66,4.14561111]
[1750801840332,5.51823226,145.71,145.64,88.7]
[1750801840549,5.51823226,145.71,145.65,4.14561111]
[1750801840746,8.94970573,145.71,145.65,4.14561111]
[1750801841652,4.14561111,145.7,145.65,4.14561111]
[1750801843056,1.37277781,145.69,145.65,4.14561111]
[1750801843259,1.37277781,145.69,145.65,92.84561111]
[1750801844056,4.80406285,145.71,145.65,92.84561111]
[1750801844234,4.14561111,145.7,145.65,92.84561111]
[1750801845059,1.37277781,145.69,145.65,92.84561111]
[1750801846538,5.51838892,145.69,145.65,88.7]
[1750801847234,4.14561111,145.68,145.65,88.7]
[1750801848153,6.16,145.67,145.65,88.7]
[1750801848740,7.7247,145.67,145.65,88.7]
[1750801849155,1.37306055,145.66,145.65,88.7]
[1750801849841,5.51867166,145.66,145.62,88.7]
[1750801850072,4.14561111,145.65,145.6,92.84561111]
[1750801850959,1.3732491,145.64,145.6,92.84561111]
[1750801851275,4.14561111,145.61,145.54,3.3992468]
[1750801851463,4.14561111,145.58,145.53,4.14561111]
[1750801851651,4.14561111,145.57,145.52,4.14561111]
[1750801852782,4.14561111,145.57,145.52,30.14561111]